[Event "Titled Tuesday Blitz March 01 Late 2022"]
[White "Krishnan, Varun"]
[Black "Quesada Perez, Yuniesky"]
[WhiteFideId "5054508"]
[BlackFideId "3504409"]
[WhiteElo "2606"]
[BlackElo "2622"]
[Result "1/2-1/2"]
[Round "04"]
[TimeControl "180+1"]
[Date "2022.03.01"]
[WhiteClock "0:00:22"]
[BlackClock "0:01:08"]

1. e4 {[%clk 0:03:00]}  c5 {[%clk 0:02:59]} 2. Nf3 {[%clk 0:02:59]}  e6 {[%clk 0:02:59]} 3. Nc3 {[%clk 0:02:57]}  Nc6 {[%clk 0:02:57]} 4. d4 {[%clk 0:02:57]}  cxd4 {[%clk 0:02:57]} 5. Nxd4 {[%clk 0:02:56]}  Qc7 {[%clk 0:02:58]} 6. Be2 {[%clk 0:02:55]}  Nf6 {[%clk 0:02:56]} 7. O-O {[%clk 0:02:55]}  Be7 {[%clk 0:02:57]} 8. Be3 {[%clk 0:02:55]}  d6 {[%clk 0:02:55]} 9. f4 {[%clk 0:02:54]}  O-O {[%clk 0:02:55]} 10. Kh1 {[%clk 0:02:52]}  Nxd4 {[%clk 0:02:55]} 11. Bxd4 {[%clk 0:02:51]}  b6 {[%clk 0:02:55]} 12. Qe1 {[%clk 0:02:46]}  Bb7 {[%clk 0:02:54]} 13. Qg3 {[%clk 0:02:45]}  Rac8 {[%clk 0:02:45]} 14. Bd3 {[%clk 0:02:41]}  Nh5 {[%clk 0:02:14]} 15. Qh3 {[%clk 0:02:25]}  Nxf4 {[%clk 0:02:04]} 16. Rxf4 {[%clk 0:02:18]}  e5 {[%clk 0:02:04]} 17. Nd5 {[%clk 0:02:02]}  Bxd5 {[%clk 0:02:04]} 18. exd5 {[%clk 0:02:03]}  g6 {[%clk 0:02:05]} 19. Bc3 {[%clk 0:01:37]}  exf4 {[%clk 0:01:38]} 20. Qh6 {[%clk 0:01:35]}  f6 {[%clk 0:01:26]} 21. Bxg6 {[%clk 0:01:33]}  hxg6 {[%clk 0:01:08]} 22. Qxg6+ {[%clk 0:01:33]}  Kh8 {[%clk 0:01:09]} 23. Qh6+ {[%clk 0:00:22]}  Kg8 {[%clk 0:01:08]} 24. Qg6+ {[%clk 0:00:21]}  Kh8 {[%clk 0:01:08]} 25. Qh6+ {[%clk 0:00:21]}  Kg8 {[%clk 0:01:08]} 26. Qg6+ {[%clk 0:00:22]} 1/2-1/2


[Site "https://www.chess.com"]

[Event "Titled Tuesday Blitz March 01 Late 2022"]
[White "Kulon, Klaudia"]
[Black "Kamsky, Gata"]
[WhiteFideId "1131044"]
[BlackFideId "2000024"]
[WhiteElo "2281"]
[BlackElo "2645"]
[Result "0-1"]
[Round "04"]
[TimeControl "180+1"]
[Date "2022.03.01"]
[WhiteClock "0:00:09"]
[BlackClock "0:00:41"]

1. c4 {[%clk 0:03:00]}  g6 {[%clk 0:02:56]} 2. g3 {[%clk 0:03:00]}  Bg7 {[%clk 0:02:56]} 3. Bg2 {[%clk 0:03:01]}  Nf6 {[%clk 0:02:56]} 4. Nc3 {[%clk 0:03:00]}  O-O {[%clk 0:02:56]} 5. e3 {[%clk 0:03:01]}  c6 {[%clk 0:02:54]} 6. Nge2 {[%clk 0:03:00]}  d5 {[%clk 0:02:55]} 7. cxd5 {[%clk 0:02:51]}  cxd5 {[%clk 0:02:54]} 8. d4 {[%clk 0:02:52]}  Nc6 {[%clk 0:02:54]} 9. O-O {[%clk 0:02:51]}  e6 {[%clk 0:02:54]} 10. b3 {[%clk 0:02:50]}  Qe7 {[%clk 0:02:53]} 11. Bb2 {[%clk 0:02:38]}  Bd7 {[%clk 0:02:53]} 12. Qd2 {[%clk 0:02:36]}  Rfc8 {[%clk 0:02:51]} 13. Rfc1 {[%clk 0:02:35]}  Qd8 {[%clk 0:02:42]} 14. Nb5 {[%clk 0:02:32]}  Bf8 {[%clk 0:02:39]} 15. Nf4 {[%clk 0:02:23]}  a6 {[%clk 0:02:38]} 16. Nc3 {[%clk 0:02:19]}  Ne7 {[%clk 0:02:35]} 17. Nd3 {[%clk 0:02:16]}  Nf5 {[%clk 0:02:34]} 18. h3 {[%clk 0:02:02]}  Be8 {[%clk 0:02:33]} 19. g4 {[%clk 0:01:59]}  Nd6 {[%clk 0:02:33]} 20. Ne5 {[%clk 0:01:51]}  Rc7 {[%clk 0:02:19]} 21. f3 {[%clk 0:01:43]}  Rac8 {[%clk 0:02:19]} 22. Bf1 {[%clk 0:01:39]}  Nd7 {[%clk 0:02:15]} 23. Nd3 {[%clk 0:01:35]}  Bg7 {[%clk 0:02:04]} 24. Na4 {[%clk 0:01:28]}  Nb8 {[%clk 0:01:45]} 25. Nc3 {[%clk 0:01:09]}  a5 {[%clk 0:01:40]} 26. Ba3 {[%clk 0:01:00]}  Bf8 {[%clk 0:01:36]} 27. Bb2 {[%clk 0:00:57]}  b6 {[%clk 0:01:34]} 28. Kg2 {[%clk 0:00:51]}  Nc6 {[%clk 0:01:24]} 29. Ne2 {[%clk 0:00:46]}  Na7 {[%clk 0:01:19]} 30. Rxc7 {[%clk 0:00:44]}  Rxc7 {[%clk 0:01:19]} 31. Rc1 {[%clk 0:00:44]}  Rxc1 {[%clk 0:01:16]} 32. Qxc1 {[%clk 0:00:44]}  Qc8 {[%clk 0:01:15]} 33. Qxc8 {[%clk 0:00:40]}  Naxc8 {[%clk 0:01:14]} 34. Nc3 {[%clk 0:00:40]}  Na7 {[%clk 0:01:05]} 35. Nf4 {[%clk 0:00:37]}  Ndb5 {[%clk 0:01:03]} 36. Na4 {[%clk 0:00:35]}  Nc8 {[%clk 0:01:03]} 37. e4 {[%clk 0:00:34]}  dxe4 {[%clk 0:01:00]} 38. fxe4 {[%clk 0:00:34]}  Bg7 {[%clk 0:00:59]} 39. d5 {[%clk 0:00:30]}  Bxb2 {[%clk 0:00:57]} 40. Nxb2 {[%clk 0:00:30]}  e5 {[%clk 0:00:52]} 41. Nfd3 {[%clk 0:00:29]}  f6 {[%clk 0:00:51]} 42. Na4 {[%clk 0:00:28]}  Nbd6 {[%clk 0:00:50]} 43. Ndb2 {[%clk 0:00:27]}  Kf8 {[%clk 0:00:47]} 44. Kf3 {[%clk 0:00:27]}  Ke7 {[%clk 0:00:46]} 45. Nc3 {[%clk 0:00:26]}  b5 {[%clk 0:00:45]} 46. a4 {[%clk 0:00:25]}  b4 {[%clk 0:00:45]} 47. Nb1 {[%clk 0:00:23]}  Nb6 {[%clk 0:00:45]} 48. Nd2 {[%clk 0:00:23]}  Bd7 {[%clk 0:00:45]} 49. Ndc4 {[%clk 0:00:23]}  Ndxc4 {[%clk 0:00:44]} 50. Nxc4 {[%clk 0:00:24]}  Nxc4 {[%clk 0:00:44]} 51. Bxc4 {[%clk 0:00:24]}  Kd6 {[%clk 0:00:45]} 52. Ke3 {[%clk 0:00:24]}  Kc5 {[%clk 0:00:45]} 53. Be2 {[%clk 0:00:23]}  h6 {[%clk 0:00:44]} 54. Bf3 {[%clk 0:00:22]}  f5 {[%clk 0:00:43]} 55. gxf5 {[%clk 0:00:21]}  gxf5 {[%clk 0:00:43]} 56. h4 {[%clk 0:00:22]}  fxe4 {[%clk 0:00:41]} 57. Bxe4 {[%clk 0:00:21]}  Kd6 {[%clk 0:00:41]} 58. Kd3 {[%clk 0:00:20]}  Bc8 {[%clk 0:00:41]} 59. Bg2 {[%clk 0:00:19]}  Bb7 {[%clk 0:00:40]} 60. Bf1 {[%clk 0:00:12]}  Bxd5 {[%clk 0:00:40]} 61. Kc2 {[%clk 0:00:12]}  Kc5 {[%clk 0:00:40]} 62. Be2 {[%clk 0:00:12]}  Kd4 {[%clk 0:00:40]} 63. Bd1 {[%clk 0:00:11]}  Ke3 {[%clk 0:00:40]} 64. Bh5 {[%clk 0:00:10]}  e4 {[%clk 0:00:41]} 65. Bd1 {[%clk 0:00:09]}  Kf2 {[%clk 0:00:41]} 66. Kd2 {[%clk 0:00:09]}  e3+ {[%clk 0:00:41]} 67. Kd3 {[%clk 0:00:09]}  Bxb3 {[%clk 0:00:41]} 68. Bxb3 {[%clk 0:00:09]}  e2 {[%clk 0:00:41]} 0-1


[Site "https://www.chess.com"]

[Event "Titled Tuesday Blitz March 01 Late 2022"]
[White "Ladan, Nicholas"]
[Black "Fus, Jakub"]
[WhiteFideId "30918855"]
[BlackFideId "1193023"]
[WhiteElo "2366"]
[BlackElo "2111"]
[Result "0-1"]
[Round "04"]
[TimeControl "180+1"]
[Date "2022.03.02"]
[WhiteClock "0:00:05"]
[BlackClock "0:00:25"]

1. d4 {[%clk 0:03:00]}  Nf6 {[%clk 0:02:58]} 2. Bf4 {[%clk 0:03:01]}  d5 {[%clk 0:02:57]} 3. e3 {[%clk 0:03:01]}  c5 {[%clk 0:02:57]} 4. Nf3 {[%clk 0:03:01]}  Nc6 {[%clk 0:02:58]} 5. Nbd2 {[%clk 0:03:00]}  cxd4 {[%clk 0:02:58]} 6. exd4 {[%clk 0:03:00]}  Qb6 {[%clk 0:02:58]} 7. Nb3 {[%clk 0:02:59]}  Bf5 {[%clk 0:02:59]} 8. c3 {[%clk 0:02:59]}  e6 {[%clk 0:02:53]} 9. Bd3 {[%clk 0:02:59]}  Bxd3 {[%clk 0:02:50]} 10. Qxd3 {[%clk 0:03:00]}  Be7 {[%clk 0:02:49]} 11. O-O {[%clk 0:02:58]}  O-O {[%clk 0:02:50]} 12. Rfe1 {[%clk 0:02:58]}  Rac8 {[%clk 0:02:48]} 13. h3 {[%clk 0:02:58]}  a6 {[%clk 0:02:47]} 14. Re2 {[%clk 0:02:40]}  Ne4 {[%clk 0:02:47]} 15. Ne5 {[%clk 0:02:31]}  Nxe5 {[%clk 0:02:40]} 16. Bxe5 {[%clk 0:02:28]}  Rfe8 {[%clk 0:02:35]} 17. f3 {[%clk 0:02:12]}  Nd6 {[%clk 0:02:35]} 18. g4 {[%clk 0:02:12]}  Nc4 {[%clk 0:02:33]} 19. Bg3 {[%clk 0:02:10]}  a5 {[%clk 0:02:32]} 20. Rb1 {[%clk 0:01:29]}  a4 {[%clk 0:02:24]} 21. Nd2 {[%clk 0:01:28]}  Nxb2 {[%clk 0:02:20]} 22. Qe3 {[%clk 0:01:13]}  Bf6 {[%clk 0:02:09]} 23. Ne4 {[%clk 0:01:05]}  dxe4 {[%clk 0:02:03]} 24. Rexb2 {[%clk 0:01:03]}  Qc6 {[%clk 0:01:50]} 25. fxe4 {[%clk 0:00:42]}  Qxc3 {[%clk 0:01:49]} 26. Bf2 {[%clk 0:00:39]}  Qxe3 {[%clk 0:01:41]} 27. Bxe3 {[%clk 0:00:39]}  Rc3 {[%clk 0:01:42]} 28. Kf2 {[%clk 0:00:38]}  Rc4 {[%clk 0:01:28]} 29. e5 {[%clk 0:00:24]}  Bh4+ {[%clk 0:01:28]} 30. Kf3 {[%clk 0:00:24]}  Rc3 {[%clk 0:01:28]} 31. Ke4 {[%clk 0:00:24]}  a3 {[%clk 0:01:12]} 32. Rxb7 {[%clk 0:00:23]}  h6 {[%clk 0:01:11]} 33. Ra7 {[%clk 0:00:21]}  Rd8 {[%clk 0:01:03]} 34. Rbb7 {[%clk 0:00:19]}  Rf8 {[%clk 0:00:52]} 35. Bd2 {[%clk 0:00:19]}  Rxh3 {[%clk 0:00:50]} 36. Bb4 {[%clk 0:00:20]}  Bg5 {[%clk 0:00:46]} 37. d5 {[%clk 0:00:16]}  exd5+ {[%clk 0:00:41]} 38. Kxd5 {[%clk 0:00:14]}  Rd8+ {[%clk 0:00:41]} 39. Bd6 {[%clk 0:00:14]}  Rf3 {[%clk 0:00:39]} 40. Rxa3 {[%clk 0:00:10]}  Rxa3 {[%clk 0:00:38]} 41. Kc6 {[%clk 0:00:10]}  Rxa2 {[%clk 0:00:37]} 42. Kc7 {[%clk 0:00:06]}  Rc2+ {[%clk 0:00:36]} 43. Kb6 {[%clk 0:00:06]}  Rg2 {[%clk 0:00:36]} 44. Rc7 {[%clk 0:00:05]}  Rxg4 {[%clk 0:00:36]} 45. Rc5 {[%clk 0:00:05]}  h5 {[%clk 0:00:34]} 46. Kc6 {[%clk 0:00:05]}  h4 {[%clk 0:00:34]} 47. Rc3 {[%clk 0:00:06]}  Rg3 {[%clk 0:00:34]} 48. Rc2 {[%clk 0:00:06]}  h3 {[%clk 0:00:34]} 49. e6 {[%clk 0:00:06]}  Rxd6+ {[%clk 0:00:33]} 50. Kxd6 {[%clk 0:00:06]}  fxe6 {[%clk 0:00:32]} 51. Kxe6 {[%clk 0:00:07]}  Rg2 {[%clk 0:00:31]} 52. Rc1 {[%clk 0:00:06]}  h2 {[%clk 0:00:32]} 53. Kf5 {[%clk 0:00:06]}  Bf6 {[%clk 0:00:30]} 54. Rh1 {[%clk 0:00:04]}  Kf7 {[%clk 0:00:29]} 55. Kf4 {[%clk 0:00:03]}  g5+ {[%clk 0:00:28]} 56. Kf3 {[%clk 0:00:03]}  Ra2 {[%clk 0:00:28]} 57. Kg3 {[%clk 0:00:04]}  Kg6 {[%clk 0:00:28]} 58. Rxh2 {[%clk 0:00:02]}  Be5+ {[%clk 0:00:26]} 59. Kg4 {[%clk 0:00:02]}  Bxh2 {[%clk 0:00:26]} 60. Kf3 {[%clk 0:00:03]}  Bb8 {[%clk 0:00:25]} 61. Kg4 {[%clk 0:00:04]}  Ra4+ {[%clk 0:00:24]} 62. Kf3 {[%clk 0:00:03]}  g4+ {[%clk 0:00:25]} 63. Kg2 {[%clk 0:00:04]}  Kf5 {[%clk 0:00:25]} 64. Kg1 {[%clk 0:00:04]}  Kf4 {[%clk 0:00:25]} 65. Kg2 {[%clk 0:00:05]} 0-1


[Site "https://www.chess.com"]

[Event "Titled Tuesday Blitz March 01 Late 2022"]
[White "Levine, David"]
[Black "Jaskolka, Tomasz"]
[WhiteFideId "2011611"]
[BlackFideId "1170791"]
[WhiteElo "2140"]
[BlackElo "2054"]
[Result "0-1"]
[Round "04"]
[TimeControl "180+1"]
[Date "2022.03.02"]
[WhiteClock "0:00:01"]
[BlackClock "0:00:07"]

1. d4 {[%clk 0:03:00]}  Nf6 {[%clk 0:02:59]} 2. c4 {[%clk 0:03:00]}  e6 {[%clk 0:02:59]} 3. g3 {[%clk 0:03:00]}  d5 {[%clk 0:02:55]} 4. Bg2 {[%clk 0:03:00]}  c6 {[%clk 0:02:54]} 5. Nf3 {[%clk 0:02:59]}  dxc4 {[%clk 0:02:52]} 6. O-O {[%clk 0:02:56]}  Be7 {[%clk 0:02:51]} 7. Ne5 {[%clk 0:02:54]}  Nbd7 {[%clk 0:02:47]} 8. Nxc4 {[%clk 0:02:53]}  Nb6 {[%clk 0:02:47]} 9. Ne5 {[%clk 0:02:52]}  O-O {[%clk 0:02:47]} 10. Nc3 {[%clk 0:02:51]}  c5 {[%clk 0:02:40]} 11. dxc5 {[%clk 0:02:42]}  Bxc5 {[%clk 0:02:38]} 12. Bf4 {[%clk 0:02:33]}  Nbd5 {[%clk 0:02:31]} 13. Nxd5 {[%clk 0:02:27]}  Nxd5 {[%clk 0:02:30]} 14. Bxd5 {[%clk 0:02:05]}  exd5 {[%clk 0:02:30]} 15. Rc1 {[%clk 0:02:02]}  b6 {[%clk 0:02:24]} 16. Nd3 {[%clk 0:02:00]}  Bh3 {[%clk 0:02:06]} 17. Re1 {[%clk 0:01:53]}  Rc8 {[%clk 0:01:51]} 18. b4 {[%clk 0:01:24]}  Be7 {[%clk 0:01:46]} 19. Qb3 {[%clk 0:01:20]}  Qd7 {[%clk 0:01:29]} 20. Ne5 {[%clk 0:01:11]}  Qe6 {[%clk 0:01:28]} 21. Red1 {[%clk 0:00:58]}  g5 {[%clk 0:01:19]} 22. Rxc8 {[%clk 0:00:46]}  Rxc8 {[%clk 0:01:18]} 23. Nd3 {[%clk 0:00:30]}  Qe4 {[%clk 0:00:54]} 24. f3 {[%clk 0:00:17]}  Qxe2 {[%clk 0:00:52]} 25. Nf2 {[%clk 0:00:15]}  Rc2 {[%clk 0:00:33]} 26. Qe3 {[%clk 0:00:06]}  gxf4 {[%clk 0:00:17]} 27. Qxe2 {[%clk 0:00:06]}  Rxe2 {[%clk 0:00:17]} 28. Nxh3 {[%clk 0:00:06]}  fxg3 {[%clk 0:00:16]} 29. hxg3 {[%clk 0:00:07]}  Bxb4 {[%clk 0:00:17]} 30. Rxd5 {[%clk 0:00:06]}  Bc5+ {[%clk 0:00:17]} 31. Kf1 {[%clk 0:00:04]}  Rxa2 {[%clk 0:00:17]} 32. Rd7 {[%clk 0:00:03]}  a5 {[%clk 0:00:16]} 33. Ng5 {[%clk 0:00:03]}  a4 {[%clk 0:00:10]} 34. Nxf7 {[%clk 0:00:03]}  Rf2+ {[%clk 0:00:06]} 35. Ke1 {[%clk 0:00:02]}  Rxf3 {[%clk 0:00:07]} 36. Nh6+ {[%clk 0:00:01]}  Kf8 {[%clk 0:00:07]} 0-1


[Site "https://www.chess.com"]

[Event "Titled Tuesday Blitz March 01 Late 2022"]
[White "Makarian, Rudik"]
[Black "Hua, Lefong"]
[WhiteFideId "44105681"]
[BlackFideId "2602253"]
[WhiteElo "2486"]
[BlackElo "2578"]
[Result "1/2-1/2"]
[Round "04"]
[TimeControl "180+1"]
[Date "2022.03.01"]
[WhiteClock "0:00:04"]
[BlackClock "0:00:14"]

1. e4 {[%clk 0:03:00]}  c5 {[%clk 0:02:59]} 2. Nf3 {[%clk 0:03:01]}  g6 {[%clk 0:02:59]} 3. h4 {[%clk 0:03:00]}  Nf6 {[%clk 0:02:52]} 4. Nc3 {[%clk 0:02:59]}  d6 {[%clk 0:02:49]} 5. e5 {[%clk 0:02:53]}  dxe5 {[%clk 0:02:48]} 6. Nxe5 {[%clk 0:02:53]}  Nbd7 {[%clk 0:02:48]} 7. d4 {[%clk 0:02:49]}  cxd4 {[%clk 0:02:39]} 8. Qxd4 {[%clk 0:02:50]}  Nxe5 {[%clk 0:02:38]} 9. Qxe5 {[%clk 0:02:51]}  Bg7 {[%clk 0:02:36]} 10. Bb5+ {[%clk 0:02:44]}  Bd7 {[%clk 0:02:35]} 11. Bg5 {[%clk 0:02:41]}  Bxb5 {[%clk 0:02:24]} 12. Qxb5+ {[%clk 0:02:42]}  Qd7 {[%clk 0:02:24]} 13. Qxd7+ {[%clk 0:02:33]}  Kxd7 {[%clk 0:02:25]} 14. O-O-O+ {[%clk 0:02:32]}  Kc6 {[%clk 0:02:17]} 15. Rhe1 {[%clk 0:02:29]}  e6 {[%clk 0:02:10]} 16. Ne4 {[%clk 0:02:29]}  Nxe4 {[%clk 0:01:56]} 17. Rxe4 {[%clk 0:02:30]}  b5 {[%clk 0:01:52]} 18. c4 {[%clk 0:02:18]}  Rac8 {[%clk 0:01:40]} 19. Kb1 {[%clk 0:02:17]}  a6 {[%clk 0:01:37]} 20. Be7 {[%clk 0:02:04]}  Rhe8 {[%clk 0:01:31]} 21. cxb5+ {[%clk 0:01:59]}  axb5 {[%clk 0:01:30]} 22. Bb4 {[%clk 0:01:57]}  Red8 {[%clk 0:01:23]} 23. Rxd8 {[%clk 0:01:53]}  Rxd8 {[%clk 0:01:24]} 24. Kc2 {[%clk 0:01:53]}  Rd4 {[%clk 0:01:22]} 25. Rxd4 {[%clk 0:01:51]}  Bxd4 {[%clk 0:01:23]} 26. Be1 {[%clk 0:01:49]}  h5 {[%clk 0:01:21]} 27. b3 {[%clk 0:01:48]}  e5 {[%clk 0:01:17]} 28. a4 {[%clk 0:01:43]}  bxa4 {[%clk 0:01:16]} 29. bxa4 {[%clk 0:01:44]}  e4 {[%clk 0:01:15]} 30. f3 {[%clk 0:01:40]}  exf3 {[%clk 0:01:11]} 31. gxf3 {[%clk 0:01:41]}  f6 {[%clk 0:01:11]} 32. Kd3 {[%clk 0:01:30]}  Bc5 {[%clk 0:01:04]} 33. Ke4 {[%clk 0:01:26]}  Kd6 {[%clk 0:00:50]} 34. a5 {[%clk 0:01:20]}  Ke6 {[%clk 0:00:48]} 35. a6 {[%clk 0:01:12]}  g5 {[%clk 0:00:48]} 36. hxg5 {[%clk 0:00:56]}  fxg5 {[%clk 0:00:49]} 37. Bd2 {[%clk 0:00:56]}  h4 {[%clk 0:00:45]} 38. Be3 {[%clk 0:00:46]}  h3 {[%clk 0:00:39]} 39. Bxc5 {[%clk 0:00:45]}  h2 {[%clk 0:00:40]} 40. a7 {[%clk 0:00:45]}  h1=Q {[%clk 0:00:40]} 41. a8=Q {[%clk 0:00:46]}  Qb1+ {[%clk 0:00:29]} 42. Kd4 {[%clk 0:00:44]}  Qd1+ {[%clk 0:00:29]} 43. Kc4 {[%clk 0:00:43]}  Qe2+ {[%clk 0:00:29]} 44. Kc3 {[%clk 0:00:41]}  Qe1+ {[%clk 0:00:26]} 45. Kc4 {[%clk 0:00:31]}  Qe2+ {[%clk 0:00:25]} 46. Kb4 {[%clk 0:00:31]}  Qb2+ {[%clk 0:00:24]} 47. Ka4 {[%clk 0:00:23]}  Qa2+ {[%clk 0:00:20]} 48. Ba3 {[%clk 0:00:22]}  Qc4+ {[%clk 0:00:20]} 49. Ka5 {[%clk 0:00:20]}  Qc3+ {[%clk 0:00:17]} 50. Kb6 {[%clk 0:00:16]}  Qb3+ {[%clk 0:00:15]} 51. Kc7 {[%clk 0:00:16]}  Qc4+ {[%clk 0:00:14]} 52. Kb6 {[%clk 0:00:07]}  Qb3+ {[%clk 0:00:14]} 53. Kc7 {[%clk 0:00:06]}  Qc4+ {[%clk 0:00:15]} 54. Kb8 {[%clk 0:00:04]}  Qb5+ {[%clk 0:00:13]} 55. Kc8 {[%clk 0:00:03]}  Qd7+ {[%clk 0:00:13]} 56. Kb8 {[%clk 0:00:04]}  Qd8+ {[%clk 0:00:13]} 57. Ka7 {[%clk 0:00:03]}  Qa5+ {[%clk 0:00:13]} 58. Kb7 {[%clk 0:00:04]}  Qd5+ {[%clk 0:00:13]} 59. Kb8 {[%clk 0:00:04]}  Qd8+ {[%clk 0:00:14]} 60. Kb7 {[%clk 0:00:03]}  Qd5+ {[%clk 0:00:14]} 61. Ka7 {[%clk 0:00:04]}  Qa5+ {[%clk 0:00:14]} 62. Kb8 {[%clk 0:00:04]}  Qd8+ {[%clk 0:00:14]} 1/2-1/2


[Site "https://www.chess.com"]

[Event "Titled Tuesday Blitz March 01 Late 2022"]
[White "Maksimovic, Bojan"]
[Black "Rangel, Daniel"]
[WhiteFideId "14408120"]
[BlackFideId "2124475"]
[WhiteElo "2725"]
[BlackElo "2471"]
[Result "1-0"]
[Round "04"]
[TimeControl "180+1"]
[Date "2022.03.02"]
[WhiteClock "0:01:25"]
[BlackClock "0:00:17"]

1. a3 {[%clk 0:03:00]}  Nf6 {[%clk 0:02:58]} 2. c4 {[%clk 0:03:01]}  g6 {[%clk 0:02:59]} 3. b4 {[%clk 0:03:01]}  Bg7 {[%clk 0:03:00]} 4. Bb2 {[%clk 0:03:01]}  O-O {[%clk 0:03:00]} 5. g3 {[%clk 0:03:02]}  c6 {[%clk 0:02:58]} 6. Bg2 {[%clk 0:03:02]}  d5 {[%clk 0:02:58]} 7. cxd5 {[%clk 0:03:00]}  cxd5 {[%clk 0:02:58]} 8. Nf3 {[%clk 0:03:01]}  a5 {[%clk 0:02:54]} 9. bxa5 {[%clk 0:03:01]}  Nc6 {[%clk 0:02:51]} 10. O-O {[%clk 0:03:00]}  Nxa5 {[%clk 0:02:47]} 11. d3 {[%clk 0:03:01]}  Nc6 {[%clk 0:02:46]} 12. Nbd2 {[%clk 0:03:01]}  Re8 {[%clk 0:02:45]} 13. Ne5 {[%clk 0:02:53]}  Qd6 {[%clk 0:02:37]} 14. Nxc6 {[%clk 0:02:34]}  Qxc6 {[%clk 0:02:23]} 15. Qb3 {[%clk 0:02:33]}  e6 {[%clk 0:02:18]} 16. Rfc1 {[%clk 0:02:32]}  Qa4 {[%clk 0:02:19]} 17. Qxa4 {[%clk 0:02:26]}  Rxa4 {[%clk 0:02:19]} 18. Nb3 {[%clk 0:02:26]}  Ra8 {[%clk 0:02:01]} 19. a4 {[%clk 0:02:21]}  Bd7 {[%clk 0:01:52]} 20. a5 {[%clk 0:02:22]}  Bc6 {[%clk 0:01:52]} 21. a6 {[%clk 0:02:04]}  Nd7 {[%clk 0:01:39]} 22. Bxg7 {[%clk 0:02:00]}  Kxg7 {[%clk 0:01:40]} 23. Nd4 {[%clk 0:01:51]}  Rec8 {[%clk 0:01:24]} 24. e4 {[%clk 0:01:44]}  dxe4 {[%clk 0:01:06]} 25. Nxc6 {[%clk 0:01:43]}  bxc6 {[%clk 0:01:03]} 26. Bxe4 {[%clk 0:01:42]}  Ra7 {[%clk 0:00:38]} 27. Rxc6 {[%clk 0:01:37]}  Rxc6 {[%clk 0:00:21]} 28. Bxc6 {[%clk 0:01:37]}  Nc5 {[%clk 0:00:21]} 29. Bb5 {[%clk 0:01:38]}  Kf6 {[%clk 0:00:20]} 30. f4 {[%clk 0:01:34]}  Ke7 {[%clk 0:00:20]} 31. Kf2 {[%clk 0:01:33]}  Kd6 {[%clk 0:00:19]} 32. Ke3 {[%clk 0:01:31]}  Kc7 {[%clk 0:00:19]} 33. d4 {[%clk 0:01:32]}  Kb6 {[%clk 0:00:16]} 34. dxc5+ {[%clk 0:01:26]}  Kxc5 {[%clk 0:00:17]} 35. Be2 {[%clk 0:01:25]} 1-0


[Site "https://www.chess.com"]

[Event "Titled Tuesday Blitz March 01 Late 2022"]
[White "Martins, Carlos"]
[Black "Winkels, Marcel"]
[WhiteFideId "2101688"]
[BlackFideId "1003887"]
[WhiteElo "2183"]
[BlackElo "1900"]
[Result "1-0"]
[Round "04"]
[TimeControl "180+1"]
[Date "2022.03.02"]
[WhiteClock "0:00:16"]
[BlackClock "0:00:27"]

1. e4 {[%clk 0:03:00]}  c5 {[%clk 0:02:58]} 2. Nf3 {[%clk 0:03:00]}  d6 {[%clk 0:02:56]} 3. d4 {[%clk 0:03:01]}  cxd4 {[%clk 0:02:56]} 4. Nxd4 {[%clk 0:03:02]}  Nf6 {[%clk 0:02:56]} 5. Nc3 {[%clk 0:03:02]}  a6 {[%clk 0:02:57]} 6. Bg5 {[%clk 0:03:02]}  Nbd7 {[%clk 0:02:55]} 7. f4 {[%clk 0:03:01]}  Qc7 {[%clk 0:02:54]} 8. Qf3 {[%clk 0:03:00]}  b5 {[%clk 0:02:44]} 9. O-O-O {[%clk 0:02:50]}  Bb7 {[%clk 0:02:43]} 10. a3 {[%clk 0:02:42]}  h6 {[%clk 0:02:42]} 11. Bh4 {[%clk 0:02:36]}  g6 {[%clk 0:02:31]} 12. Nd5 {[%clk 0:02:19]}  Bxd5 {[%clk 0:02:17]} 13. exd5 {[%clk 0:02:20]}  Bg7 {[%clk 0:02:17]} 14. Nc6 {[%clk 0:02:15]}  O-O {[%clk 0:02:02]} 15. Nxe7+ {[%clk 0:02:11]}  Kh7 {[%clk 0:02:01]} 16. Nc6 {[%clk 0:02:07]}  Rac8 {[%clk 0:01:54]} 17. Bd3 {[%clk 0:02:01]}  Nb8 {[%clk 0:01:52]} 18. Nxb8 {[%clk 0:01:56]}  Rxb8 {[%clk 0:01:51]} 19. g4 {[%clk 0:01:51]}  a5 {[%clk 0:01:42]} 20. g5 {[%clk 0:01:45]}  Nd7 {[%clk 0:01:41]} 21. Kb1 {[%clk 0:01:37]}  b4 {[%clk 0:01:39]} 22. a4 {[%clk 0:01:36]}  b3 {[%clk 0:01:39]} 23. cxb3 {[%clk 0:01:35]}  Nc5 {[%clk 0:01:38]} 24. Bc4 {[%clk 0:01:29]}  Nxa4 {[%clk 0:01:30]} 25. f5 {[%clk 0:01:27]}  Bxb2 {[%clk 0:01:19]} 26. Qd3 {[%clk 0:00:52]}  Be5 {[%clk 0:01:16]} 27. Rc1 {[%clk 0:00:41]}  Nc5 {[%clk 0:01:04]} 28. Qh3 {[%clk 0:00:40]}  a4 {[%clk 0:01:00]} 29. Bg3 {[%clk 0:00:38]}  Nxb3 {[%clk 0:00:44]} 30. Qxh6+ {[%clk 0:00:29]}  Kg8 {[%clk 0:00:40]} 31. Bxe5 {[%clk 0:00:23]}  Nd2+ {[%clk 0:00:29]} 32. Ka1 {[%clk 0:00:17]}  dxe5 {[%clk 0:00:27]} 33. f6 {[%clk 0:00:16]} 1-0


[Site "https://www.chess.com"]

[Event "Titled Tuesday Blitz March 01 Late 2022"]
[White "Mirzoev, Azer"]
[Black "Corrales Jimenez, Fidel"]
[WhiteFideId "13400304"]
[BlackFideId "3506690"]
[WhiteElo "2525"]
[BlackElo "2541"]
[Result "0-1"]
[Round "04"]
[TimeControl "180+1"]
[Date "2022.03.01"]
[WhiteClock "0:01:20"]
[BlackClock "0:01:41"]

1. d4 {[%clk 0:03:00]}  Nf6 {[%clk 0:02:59]} 2. Nf3 {[%clk 0:03:00]}  g6 {[%clk 0:03:00]} 3. g3 {[%clk 0:03:00]}  Bg7 {[%clk 0:03:00]} 4. Bg2 {[%clk 0:03:01]}  O-O {[%clk 0:03:01]} 5. O-O {[%clk 0:03:01]}  d5 {[%clk 0:03:01]} 6. Nbd2 {[%clk 0:03:00]}  Re8 {[%clk 0:03:01]} 7. c4 {[%clk 0:03:00]}  Nc6 {[%clk 0:02:59]} 8. e3 {[%clk 0:02:59]}  e5 {[%clk 0:02:59]} 9. Nxe5 {[%clk 0:02:57]}  Nxe5 {[%clk 0:02:59]} 10. dxe5 {[%clk 0:02:57]}  Rxe5 {[%clk 0:02:59]} 11. Nf3 {[%clk 0:02:58]}  Re8 {[%clk 0:02:59]} 12. Qb3 {[%clk 0:02:45]}  dxc4 {[%clk 0:02:58]} 13. Qxc4 {[%clk 0:02:45]}  Be6 {[%clk 0:02:58]} 14. Qc2 {[%clk 0:02:44]}  Bf5 {[%clk 0:02:54]} 15. Qb3 {[%clk 0:02:44]}  Be4 {[%clk 0:02:54]} 16. Rd1 {[%clk 0:02:41]}  Bd5 {[%clk 0:02:41]} 17. Qc2 {[%clk 0:02:39]}  c6 {[%clk 0:02:41]} 18. Bd2 {[%clk 0:02:37]}  Ne4 {[%clk 0:02:37]} 19. Be1 {[%clk 0:02:34]}  Qb6 {[%clk 0:02:36]} 20. Nd4 {[%clk 0:02:22]}  Rad8 {[%clk 0:02:19]} 21. b4 {[%clk 0:02:14]}  Ng5 {[%clk 0:02:13]} 22. h4 {[%clk 0:02:02]}  Bxg2 {[%clk 0:02:12]} 23. Kxg2 {[%clk 0:02:02]}  Bxd4 {[%clk 0:01:54]} 24. exd4 {[%clk 0:01:58]}  Ne6 {[%clk 0:01:54]} 25. Bc3 {[%clk 0:01:51]}  Nxd4 {[%clk 0:01:51]} 26. Qb2 {[%clk 0:01:48]}  c5 {[%clk 0:01:48]} 27. bxc5 {[%clk 0:01:44]}  Qc6+ {[%clk 0:01:47]} 28. Kh3 {[%clk 0:01:30]}  Qe6+ {[%clk 0:01:46]} 29. Kg2 {[%clk 0:01:28]}  Qe4+ {[%clk 0:01:46]} 30. Kh3 {[%clk 0:01:27]}  Qf5+ {[%clk 0:01:43]} 31. Kg2 {[%clk 0:01:25]}  Qf3+ {[%clk 0:01:43]} 32. Kh3 {[%clk 0:01:24]}  Ne2 {[%clk 0:01:43]} 33. Rxd8 {[%clk 0:01:20]}  Nf4+ {[%clk 0:01:41]} 0-1


[Site "https://www.chess.com"]